[Event "FIDE WCCC U10 2018"]
[Site "Santiago de Compostela"]
[Date "2018.11.12"]
[Round "8"]
[White "Silva, Daniel Frederico V"]
[Black "Royal, Shreyas"]
[Result "1/2-1/2"]
[ECO "B40"]
[WhiteElo "1693"]
[BlackElo "2048"]
[Annotator "NA RC"]
[PlyCount "74"]
[EventDate "2018.11.04"]
[EventType "swiss"]
[EventCountry "ESP"]
[SourceTitle "playchess.com"]
[Source "ChessBase"]
[SourceQuality "1"]
[TimeControl "40/5400+30:1800+30"]

{[%evp 8,70,29,-14,0,0,0,0,41,30,114,2,32,33,200,195,197,193,267,210,222,234,243,170,383,329,347,318,323,244,310,80,86,86,100,113,120,115,133,131,141,141,186,170,349,361,350,363,353,339,321,326,338,358,374,354,352,387,366,379,344,402,404,277,219]} 1. e4 {[%emt 0:00:22]} c5 {[%emt 0:00:34]} 2. Nf3 {[%emt 0:00:15]} e6 {[%emt 0:00:32]} 3. Nc3 {[%emt 0:05:20]} a6 {[%emt 0:00:41]} 4. a4 {[%emt 0:08:16]} d6 {[%emt 0:02:59]} 5. Bc4 {[%emt 0:04:48]} Nf6 {[%emt 0:03:21]} 6. d4 {[%emt 0:04:55]} cxd4 {[%emt 0:02:05]} 7. Nxd4 {[%emt 0:00:19]} b6 {[%emt 0:01:13] LiveBook: 10 Games B86: Sizilianisch (Sosin-Angriff)} (7... Be7 8. O-O Nc6 9. Be3 O-O 10. Qe2 Bd7 11. Nxc6 Bxc6 12. a5 Rc8 13. Rfd1 Qc7 14. Bb6 Qb8 15. Bb3 Rfe8 16. Rd3 Nd7 17. Bd4 Bf6 18. Qd2 Bxd4 19. Rxd4 {1-0 (33) Sasikiran,K (2666)-Nguyen,A (2454) Hamedan 2018}) 8. O-O {[%emt 0:02:48]} Bb7 {[%emt 0:02:06] [#]} (8... Qc7 $11 9. Bb3 Nbd7) 9. Re1 {[%emt 0:03:42]} ({Better is} 9. Bxe6 $1 $16 fxe6 10. Nxe6) 9... Nbd7 {[%emt 0:02:24]} 10. Bg5 {[%emt 0:07:47]} Be7 $2 {[%emt 0:02:15] [#]} (10... h6 $14 11. Be3 Qc7 12. Bxe6 fxe6 13. Nxe6 Qc6) 11. Bxe6 $1 {[%emt 0:05:27]} fxe6 {[%emt 0:03:01]} 12. Nxe6 {[%emt 0:01:18]} Qb8 $146 {[%emt 0:04:57]} ({Vorgänger:} 12... Qc8 {was worth a try.} 13. Nxg7+ Kf8 14. Nf5 Rg8 15. Nxd6 Bxd6 16. Qxd6+ Kf7 17. Bxf6 Nxf6 18. Nd5 {1-0 (18) Hiermann,D (2280)-Zojer,S (2043) Lienz 2011}) 13. Nxg7+ {[%emt 0:04:48]} Kf8 {[%emt 0:00:33]} 14. Nf5 {[%emt 0:09:47]} Rg8 {[%emt 0:00:58]} 15. Bh6+ {[%emt 0:04:33]} Ke8 $2 {[%emt 0:09:49]} (15... Kf7 {ist eine bessere Verteidigung.} 16. Nd5 Bf8) 16. Nd5 {[%emt 0:03:14]} Bf8 {[%emt 0:01:22]} 17. Nxf6+ {[%emt 0:02:57]} Nxf6 {[%emt 0:00:06]} 18. Bxf8 {[%emt 0:00:19]} Kxf8 {[%emt 0:00:40]} 19. Qxd6+ {[%emt 0:03:31]} (19. Ra3 $18) 19... Qxd6 {[%emt 0:00:18]} 20. Nxd6 {[%emt 0:00:07]} Bc6 {[%emt 0:00:08]} 21. f3 {[%emt 0:03:33]} Rd8 {[%emt 0:00:12]} 22. Nc4 {[%emt 0:04:45]} Rd4 {[%emt 0:04:35]} 23. b3 {[%emt 0:02:00]} ({Resist} 23. Nxb6 $6 Rb4 $11) 23... b5 {[%emt 0:00:54] [#]} 24. axb5 $1 {[%emt 0:01:38]} Bxb5 {[%emt 0:00:09] [#]} 25. Ne3 $1 {[%emt 0:00:59]} Rd7 $2 {[%emt 0:03:09]} (25... Nd7 $16 {was called for.} 26. c4 Ne5) 26. c4 {[%emt 0:02:23]} Bc6 {[%emt 0:01:05]} 27. Rxa6 {[%emt 0:00:47]} Rc7 {[%emt 0:00:04]} 28. Nd5 {[%emt 0:02:39]} Nxd5 {[%emt 0:01:09]} 29. exd5 {[%emt 0:03:26]} ({Keinesfalls} 29. cxd5 Bb7 $18) 29... Bb7 {[%emt 0:00:06]} 30. Rf6+ {[%emt 0:01:03]} Kg7 {[%emt 0:00:07]} 31. Rfe6 {[%emt 0:00:12]} Rf7 {[%emt 0:03:18]} 32. Re7 {[%emt 0:01:15]} Bc8 {[%emt 0:00:04]} 33. Rxf7+ {[%emt 0:00:32]} Kxf7 {[%emt 0:00:04]} 34. Kf2 {[%emt 0:00:49]} Bf5 {[%emt 0:00:10]} 35. Re2 {[%emt 0:02:34]} Rb8 $18 {[%emt 0:00:25]} 36. Rb2 Bd3 37. c5 Bf5 1/2-1/2

[Event "FIDE WCCC U10 2018"]
[Site "Santiago de Compostela"]
[Date "2018.11.12"]
[Round "8"]
[White "Li, Shanglin"]
[Black "Xue, Haowen"]
[Result "1/2-1/2"]
[ECO "B26"]
[WhiteElo "1659"]
[BlackElo "2025"]
[Annotator "NA RC"]
[PlyCount "113"]
[EventDate "2018.11.04"]
[EventType "swiss"]
[EventCountry "ESP"]
[SourceTitle "playchess.com"]
[Source "ChessBase"]
[SourceQuality "1"]
[TimeControl "40/5400+30:1800+30"]

{[%evp 8,109,-5,0,32767,32767,32767,3,12,2,13,-2,0,0,6,-17,17,0,0,-12,7,6,0,-45,-38,-49,-22,-54,-63,-90,-51,32767,32767,32767,-58,-57,-62,-68,-56,-64,-85,-72,-41,-35,32767,-31,-15,-48,32767,32767,32767,32767,0,7,16,-25,32767,32767,14,0,32767,12,128,0,-1,-37,0,0,32767,10,28,32767,32767,-54,32767,32767,32767,32767,32767,32767,32767,-178,-172,-174,-197,-258,-252,-267,-270,-252,-196,-223,-130,-146,-128,-135,-114,-136,-110,-131,-158,-265,-20,-14]} 1. e4 {[%emt 0:00:00]} c5 {[%emt 0:00:00]} 2. Nc3 {[%emt 0:00:00]} Nc6 {[%emt 0:00:24]} 3. g3 {[%emt 0:00:18]} g6 {[%emt 0:00:22]} 4. Bg2 {[%emt 0:00:30]} Bg7 {[%emt 0:00:10]} 5. d3 {[%emt 0:00:10]} d6 {[%emt 0:00:32]} 6. Be3 {[%emt 0:00:41]} Nf6 {[%emt 0:01:10]} 7. h3 {[%emt 0:01:27]} Rb8 {[%emt 0:00:53]} 8. Nge2 {[%emt 0:02:39]} O-O {[%emt 0:06:40]} 9. d4 {[%emt 0:06:13] B26: Closed Sicilian: 3 g3, lines with early Be3} (9. Qd2 b5 10. O-O Ne8 11. Bh6 Bxh6 12. Qxh6 b4 13. Nb1 Nd4 14. Nxd4 cxd4 15. Nd2 Rb5 16. Nf3 Rh5 {1-0 (35) Movsesian,S (2667)-Sadzikowski,D (2587) Czech Republic 2018}) 9... cxd4 {[%emt 0:01:18] LiveBook: 4 Games} 10. Nxd4 {[%emt 0:00:07]} Bd7 {[%emt 0:01:31]} 11. O-O {[%emt 0:06:17]} Qc7 $146 {[%emt 0:18:19]} ({Predecessor:} 11... Na5 12. a4 a6 13. Qd3 Qc8 14. Kh2 Nc4 15. Bc1 Ne5 16. Qd1 b5 17. axb5 axb5 {0-1 (76) Congiu,M (2241)-Pert,N (2548) England 2018}) 12. Qe2 {[%emt 0:15:39]} Rfc8 {[%emt 0:18:33]} 13. Rfd1 {[%emt 0:06:26]} a6 {[%emt 0:11:09]} 14. Rac1 {[%emt 0:02:48]} Ne5 {[%emt 0:02:05]} 15. Bg5 {[%emt 0:06:24]} e6 {[%emt 0:01:38]} 16. Nb1 {[%emt 0:01:34]} h6 {[%emt 0:10:37]} 17. Be3 {[%emt 0:02:39]} Nc4 {[%emt 0:01:23]} 18. c3 {[%emt 0:00:46]} b5 {[%emt 0:02:42]} 19. b3 {[%emt 0:03:47]} Nxe3 {[%emt 0:01:14]} 20. Qxe3 {[%emt 0:00:07]} Qb6 {[%emt 0:02:22]} 21. Rd3 {[%emt 0:03:22]} Rc7 {[%emt 0:05:11]} 22. Rcd1 {[%emt 0:03:42]} Rbc8 {[%emt 0:01:45]} 23. Nc2 {[%emt 0:02:16]} Qxe3 {[%emt 0:02:02]} 24. Nxe3 {[%emt 0:00:02]} Ne8 {[%emt 0:00:23]} 25. c4 {[%emt 0:00:19]} Kf8 {[%emt 0:02:22]} 26. Na3 {[%emt 0:04:33]} Ke7 {[%emt 0:02:16]} 27. Kh2 {[%emt 0:02:07]} b4 {[%emt 0:02:07]} 28. Nac2 {[%emt 0:00:09]} a5 {[%emt 0:00:17]} 29. f4 {[%emt 0:00:25]} g5 {[%emt 0:01:47]} 30. Bf3 {[%emt 0:01:11]} Bc6 {[%emt 0:00:31]} 31. Re1 {[%emt 0:00:28]} Kf8 {[%emt 0:01:42]} 32. Bh1 {[%emt 0:01:07]} Rd7 {[%emt 0:01:47]} 33. Red1 {[%emt 0:02:57]} Rcd8 {[%emt 0:00:28]} 34. Nd4 $1 {[%emt 0:02:38]} Ba8 {[%emt 0:00:22]} (34... Bxd4 $11 {remains equal.} 35. Rxd4 e5 36. fxe5 dxe5 37. Rxd7 Rxd7) 35. Nb5 {[%emt 0:00:46]} ({Weiss braucht} 35. e5 $1 $16) 35... Ke7 {[%emt 0:00:07]} 36. Bg2 {[%emt 0:01:08]} Bc6 {[%emt 0:01:15]} 37. Nd4 {[%emt 0:00:22]} Bxd4 {[%emt 0:00:28]} 38. Rxd4 {[%emt 0:00:01]} Nc7 {[%emt 0:00:22]} 39. Ng4 {[%emt 0:05:59]} h5 {[%emt 0:00:21] [#]} 40. Ne3 $2 {[%emt 0:00:00]} (40. e5 $1 $16 Bxg2 41. Nf6) 40... gxf4 {[%emt 0:00:00]} 41. gxf4 {[%emt 0:00:28]} Na6 {[%emt 0:02:27]} 42. Re1 {[%emt 0:10:52]} Kf8 {[%emt 0:06:03]} 43. Red1 {[%emt 0:01:04]} Nc5 {[%emt 0:06:50]} 44. Bf3 {[%emt 0:14:43] [#]} (44. h4 $15) 44... f5 $1 {[%emt 0:05:42]} 45. Bxh5 {[%emt 0:00:31]} Bxe4 {[%emt 0:00:18]} ({Less strong is} 45... Nxe4 46. Bf3 $15) 46. R4d2 {[%emt 0:01:21]} Rh7 {[%emt 0:05:10]} 47. Be2 {[%emt 0:00:20]} Ke7 {[%emt 0:00:45]} 48. Bf1 {[%emt 0:01:22]} Bf3 {[%emt 0:01:37]} 49. Be2 {[%emt 0:01:02]} Bxe2 {[%emt 0:01:16]} (49... Bc6 $19 50. Rd4 Rdh8) 50. Rxe2 {[%emt 0:00:01]} Ne4 {[%emt 0:01:20]} 51. Rd3 {[%emt 0:00:33]} Rdh8 {[%emt 0:02:10]} 52. Nf1 {[%emt 0:00:21]} Nc3 {[%emt 0:02:36]} 53. Rg2 {[%emt 0:00:52]} e5 {[%emt 0:00:57]} 54. Rg6 {[%emt 0:00:42]} (54. fxe5 $142 dxe5 55. Rg6) 54... Nxa2 $11 {[%emt 0:00:40]} (54... exf4 $19 55. Kg2 Ne4) 55. Rdxd6 {[%emt 0:00:19]} Rxh3+ {[%emt 0:00:16]} 56. Kg2 {[%emt 0:00:01]} exf4 {[%emt 0:00:38]} 57. Rge6+ {[%emt 0:00:14]} 1/2-1/2

[Event "FIDE WCCC U10 2018"]
[Site "Santiago de Compostela"]
[Date "2018.11.12"]
[Round "8"]
[White "Horcajuelo Rocamora, Martin"]
[Black "Materia, Marco"]
[Result "1/2-1/2"]
[ECO "C68"]
[WhiteElo "1647"]
[BlackElo "2035"]
[Annotator "NA RC"]
[PlyCount "124"]
[EventDate "2018.11.04"]
[EventType "swiss"]
[EventCountry "ESP"]
[SourceTitle "playchess.com"]
[Source "ChessBase"]
[SourceQuality "1"]
[TimeControl "40/5400+30:1800+30"]

{[%evp 8,124,16,20,8,11,-8,32767,-16,22,15,32767,32767,32767,32767,32767,32767,0,39,0,0,-27,-8,-111,48,18,63,0,51,16,27,0,16,-16,0,0,-6,0,0,-14,0,-2,0,0,0,-18,0,-3,6,0,0,0,-4,0,0,0,0,-1,0,-30,-5,-24,-5,-9,-25,-45,0,-23,0,-33,-13,-13,26,23,31,20,21,16,30,21,19,29,8,39,0,0,2,5,29,0,10,0,0,0,32767,32767,32767,32767,0,0,0,0,0,-7,52,53,30,49,94,36,0,0,32767,32767,32767,95,289,81,112]} 1. e4 {[%emt 0:00:00]} e5 {[%emt 0:00:00]} 2. Nf3 {[%emt 0:00:04]} Nc6 {[%emt 0:00:00]} 3. Bb5 {[%emt 0:00:30]} a6 {[%emt 0:00:00]} 4. Bxc6 {[%emt 0:00:40]} dxc6 {[%emt 0:00:05]} 5. O-O {[%emt 0:00:24]} Bg4 {[%emt 0:00:17]} 6. h3 {[%emt 0:00:42]} h5 {[%emt 0:00:06]} 7. d3 {[%emt 0:00:29]} Qf6 {[%emt 0:00:24]} 8. Nbd2 {[%emt 0:00:33]} ({Viel schlechter ist} 8. hxg4 hxg4 9. Be3 (9. Bg5 $2 Qg6 $19) 9... gxf3 $11) 8... g5 {[%emt 0:00:09]} 9. Nc4 {[%emt 0:00:49] C68: Ruy Lopez: Exchange Variation, sidelines} Bxf3 {[%emt 0:00:07]} 10. Qxf3 {[%emt 0:00:46]} Qxf3 {[%emt 0:00:06]} 11. gxf3 {[%emt 0:00:07]} f6 {[%emt 0:00:07]} 12. Be3 {[%emt 0:01:16] LiveBook: 4 Games} (12. Rd1 Ne7 13. Ne3 {½-½ (13) Solak,D (2635)-Sethuraman,S (2640) Kragujevac 2016}) 12... O-O-O {[%emt 0:01:21]} 13. Rfd1 {[%emt 0:00:23]} (13. h4 $5) 13... Rh7 {[%emt 0:09:42]} 14. c3 $146 {[%emt 0:01:50]} (14. h4 $5) ({Predecessor:} 14. Kf1 h4 15. c3 c5 16. a3 Rhd7 {1-0 (51) Kovachev,D (2297)-Vestby Ellingsen,M (1961) Oslo 2016}) 14... Rhd7 {[%emt 0:02:26]} 15. d4 {[%emt 0:00:16]} (15. h4 $11 {keeps the balance.}) 15... c5 $2 {[%emt 0:00:25]} (15... Bc5 $1 $17 16. d5 Bf8) 16. d5 {[%emt 0:00:10]} b6 {[%emt 0:05:47]} 17. Rd2 {[%emt 0:01:54]} (17. h4 $14) 17... Bd6 {[%emt 0:01:43]} 18. Rad1 {[%emt 0:02:05]} Ne7 {[%emt 0:03:33]} 19. Kf1 {[%emt 0:03:45]} Ng6 {[%emt 0:01:29]} 20. Ke2 {[%emt 0:01:19]} (20. b4 $14) 20... Kb7 {[%emt 0:00:38]} 21. Rd3 {[%emt 0:03:38]} Rg8 {[%emt 0:01:01]} 22. Rg1 {[%emt 0:00:30]} Rdg7 {[%emt 0:00:49]} 23. Rdd1 {[%emt 0:00:06]} Kc8 {[%emt 0:01:03]} 24. Rg2 {[%emt 0:01:22]} Kd7 {[%emt 0:01:10]} 25. Rgg1 {[%emt 0:00:47]} Ke7 {[%emt 0:01:14]} 26. Rg2 {[%emt 0:00:30]} a5 {[%emt 0:01:06]} 27. a4 {[%emt 0:00:32]} Nf8 {[%emt 0:00:40]} 28. Rdg1 {[%emt 0:00:37]} Ng6 {[%emt 0:00:22]} 29. Rd1 {[%emt 0:00:06]} Ra8 {[%emt 0:00:15]} 30. Ra1 {[%emt 0:00:42]} Rgg8 {[%emt 0:01:43]} 31. Rgg1 {[%emt 0:00:26]} Rgb8 {[%emt 0:00:46]} 32. Na3 {[%emt 0:01:27]} Kf7 {[%emt 0:00:46]} 33. c4 {[%emt 0:00:30]} Rg8 {[%emt 0:02:13]} 34. b3 {[%emt 0:00:16]} Kg7 {[%emt 0:00:10]} 35. Nb5 {[%emt 0:00:29]} Kh6 {[%emt 0:00:12]} 36. Nc3 {[%emt 0:01:30]} Rg7 {[%emt 0:00:19]} 37. Nb1 {[%emt 0:02:56]} Rag8 {[%emt 0:02:18]} 38. Na3 {[%emt 0:00:39]} Nh4 {[%emt 0:01:55]} 39. Nc2 {[%emt 0:02:03]} f5 {[%emt 0:01:58]} 40. Rh1 {[%emt 0:00:00]} Rf7 {[%emt 0:00:00]} 41. Rag1 {[%emt 0:03:03]} Be7 {[%emt 0:08:02]} 42. Ne1 {[%emt 0:02:39]} f4 {[%emt 0:02:42]} 43. Bd2 {[%emt 0:00:07]} Kg6 {[%emt 0:01:03]} 44. Ng2 {[%emt 0:00:17]} Nxg2 {[%emt 0:00:16]} 45. Rxg2 {[%emt 0:00:06]} Kh6 {[%emt 0:00:35]} 46. h4 {[%emt 0:01:06]} Rfg7 {[%emt 0:00:08]} 47. hxg5+ {[%emt 0:03:57]} Bxg5 {[%emt 0:00:30]} 48. Rhg1 {[%emt 0:01:32]} ({White should play} 48. Rgh2 $1 $14) 48... Rg6 {[%emt 0:01:23]} 49. Bc3 {[%emt 0:03:00]} Re8 {[%emt 0:00:42]} 50. Bd2 {[%emt 0:00:54]} Re7 {[%emt 0:00:47]} 51. Bc3 {[%emt 0:00:22]} Rgg7 {[%emt 0:00:08]} 52. Bd2 {[%emt 0:00:24]} Rd7 {[%emt 0:01:15]} 53. Bc3 {[%emt 0:00:19]} Bf6 {[%emt 0:00:07]} 54. Rxg7 {[%emt 0:00:42]} Bxg7 {[%emt 0:00:05]} 55. Rg2 {[%emt 0:01:30]} h4 {[%emt 0:04:37]} 56. Rg4 {[%emt 0:00:35]} Kh5 {[%emt 0:00:27]} 57. Kf1 {[%emt 0:00:11]} Bf6 {[%emt 0:06:47]} (57... Rf7 $11 {hält das Gleichgewicht.}) 58. Kg2 {[%emt 0:00:20]} Rg7 {[%emt 0:00:31]} 59. Kh3 Rg5 {[%emt 0:00:51]} 60. Rxh4+ {[%emt 0:01:11]} Kg6 {[%emt 0:00:12]} 61. Rg4 {[%emt 0:00:41]} Kh5 $2 {[%emt 0:00:15] [#]} (61... Kh6 $16 {keeps fighting.} 62. Kh2 Rh5+ 63. Kg1 Bg7) 62. Rxg5+ $16 {[%emt 0:00:33]} (62. Rxf4 $1 $18 {and the rest is easy.} exf4 63. Bxf6) 62... Kxg5 {[%emt 0:00:06]} 1/2-1/2

[Event "FIDE WCCC U10 2018"]
[Site "Santiago de Compostela"]
[Date "2018.11.12"]
[Round "8"]
[White "Li Yihao"]
[Black "Habans Aguerrea, Javier"]
[Result "1-0"]
[ECO "B33"]
[WhiteElo "1601"]
[BlackElo "1892"]
[Annotator "NA RC"]
[PlyCount "143"]
[EventDate "2018.11.04"]
[EventType "swiss"]
[EventCountry "ESP"]
[SourceTitle "playchess.com"]
[Source "ChessBase"]
[SourceQuality "1"]
[TimeControl "40/5400+30:1800+30"]

{[%evp 8,128,5,32767,32767,32767,32767,18,28,25,35,27,50,40,51,28,32,35,31,45,38,0,6,-33,23,-41,64,69,83,43,52,69,58,13,34,14,38,-4,43,31,37,27,46,0,57,29,47,27,18,0,-35,-54,26,32767,32767,0,0,0,33,39,12,29,72,33,34,42,24,15,32767,5,32767,32767,32767,32767,32767,32767,32767,32767,32767,141,158,93,68,159,217,51,71,62,105,60,32767,32767,32767,32767,8,8,2310,12831,29944,29972,29974,29981,12845,29978,29976,29979,12849,29980,29980,12850,29981,29982,29982,29983,29983,29984,29984,29985,32767,32767,32767,32767,29987]} 1. e4 {[%emt 0:00:00]} c5 {[%emt 0:00:00]} 2. Nf3 {[%emt 0:00:00]} Nc6 {[%emt 0:00:00]} 3. d4 {[%emt 0:00:05]} cxd4 {[%emt 0:00:01]} 4. Nxd4 {[%emt 0:00:12]} Nf6 {[%emt 0:00:08]} 5. Nc3 {[%emt 0:00:20]} e6 {[%emt 0:00:07]} 6. Ndb5 {[%emt 0:00:12]} d6 {[%emt 0:00:08]} 7. Bf4 {[%emt 0:00:16]} e5 $1 {[%emt 0:00:08]} 8. Bg5 {[%emt 0:00:10]} a6 {[%emt 0:00:06]} 9. Na3 {[%emt 0:00:40]} Be6 {[%emt 0:00:09]} 10. Nc4 {[%emt 0:09:02] B33: Sicilian: Pelikan and Sveshnikov Variations} Rb8 {[%emt 0:00:08]} 11. Nd5 {[%emt 0:01:23]} Bxd5 {[%emt 0:00:32]} 12. exd5 {[%emt 0:00:47]} Ne7 {[%emt 0:00:12]} 13. Bxf6 {[%emt 0:04:18]} gxf6 {[%emt 0:00:08] LiveBook: 4 Games [#]} 14. Ne3 $146 {[%emt 0:02:03]} ({Predecessor (2):} 14. a4 f5 15. a5 Bg7 16. g4 f4 17. Bg2 Rc8 {1-0 (35) Kryvoruchko,Y (2693)-Iturrizaga Bonelli,E (2650) Monzon 2016}) 14... f5 {[%emt 0:00:12]} 15. c3 {[%emt 0:03:56]} Bg7 {[%emt 0:00:11]} (15... f4 $5 {[%cal Rf4e3]} 16. Nc2 Qb6 $11) 16. g4 {[%emt 0:09:03]} fxg4 {[%emt 0:19:03]} (16... f4 $11 17. Nc4 b5) 17. Qxg4 {[%emt 0:03:49]} Ng6 {[%emt 0:04:12]} 18. Nf5 {[%emt 0:08:13]} Qf6 {[%emt 0:06:50]} 19. Qa4+ {[%emt 0:09:06]} Kf8 {[%emt 0:01:44]} 20. Bd3 {[%emt 0:01:37]} Ne7 {[%emt 0:12:55]} 21. Nxg7 {[%emt 0:09:26]} Kxg7 {[%emt 0:05:12]} 22. Qe4 {[%emt 0:04:00]} Qf4 {[%emt 0:01:33]} ({Black should play} 22... Qh6 $11) 23. Qxf4 {[%emt 0:01:46]} exf4 {[%emt 0:00:02]} 24. O-O-O {[%emt 0:00:41]} Rbe8 {[%emt 0:01:18]} 25. Rhg1+ {[%emt 0:01:32]} Kf8 {[%emt 0:04:01]} (25... Ng6 $11) 26. h4 {[%emt 0:04:20]} Ng6 {[%emt 0:06:08]} 27. h5 {[%emt 0:08:37]} Ne5 {[%emt 0:00:12]} 28. Bf5 h6 {[%emt 0:00:44]} 29. Rg2 {[%emt 0:03:04]} Rg8 {[%emt 0:01:28]} (29... Ke7 $15) 30. Rxg8+ {[%emt 0:00:20]} Kxg8 {[%emt 0:00:02]} 31. Rd4 {[%emt 0:00:45]} f3 {[%emt 0:00:50]} 32. Kd2 {[%emt 0:00:13]} Kg7 {[%emt 0:02:12]} 33. Rf4 {[%emt 0:01:23]} b5 {[%emt 0:02:39]} 34. b3 {[%emt 0:00:27]} Re7 {[%emt 0:01:36]} 35. Be4 {[%emt 0:02:44]} Kf8 {[%emt 0:05:29]} 36. Ke3 {[%emt 0:00:56]} Kg7 {[%emt 0:02:33]} 37. Kd4 {[%emt 0:00:19]} Nd7 {[%emt 0:01:28]} 38. Bxf3 {[%emt 0:02:41]} Re5 {[%emt 0:01:06]} 39. Re4 {[%emt 0:00:39]} f6 {[%emt 0:21:58]} 40. Be2 {[%emt 0:00:00]} Nc5 {[%emt 0:00:00]} 41. Rxe5 {[%emt 0:05:59]} fxe5+ {[%emt 0:00:55]} 42. Ke3 {[%emt 0:00:01]} Kf6 {[%emt 0:00:35] [#]} 43. b4 $1 {[%emt 0:19:58]} Na4 {[%emt 0:03:31]} 44. c4 {[%emt 0:05:08]} Nb6 {[%emt 0:02:06]} (44... Nc3 $1 $11) 45. cxb5 {[%emt 0:02:17]} Nxd5+ {[%emt 0:00:08]} 46. Kd2 {[%emt 0:02:50]} (46. Kf3 $16 axb5 47. Bxb5) 46... axb5 {[%emt 0:00:17]} 47. Bxb5 {[%emt 0:00:11]} Nxb4 {[%emt 0:00:22]} 48. a4 {[%emt 0:00:05]} Ke7 {[%emt 0:01:20]} 49. a5 {[%emt 0:00:26]} Kd8 {[%emt 0:00:06]} 50. Kc3 {[%emt 0:02:54]} Nd5+ {[%emt 0:00:09]} 51. Kc4 {[%emt 0:00:15]} Nf6 $2 {[%emt 0:00:27] [#]} (51... Nc7 $11) 52. Bc6 $1 {[%emt 0:00:34]} Kc7 {[%emt 0:00:46] [#]} 53. Kb5 $1 {[%emt 0:00:07]} Nd7 {[%emt 0:04:52]} 54. Bxd7 {[%emt 0:01:23]} Kxd7 {[%emt 0:00:17]} 55. a6 {[%emt 0:00:11]} Kc7 {[%emt 0:00:12] [#]} 56. a7 $1 {[%emt 0:00:05]} Kb7 {[%emt 0:00:09] [#]} 57. a8=Q+ $1 {[%emt 0:00:12]} Kxa8 {[%emt 0:00:05]} 58. Kc6 {[%emt 0:00:04]} Kb8 {[%emt 0:00:20]} 59. Kxd6 {[%emt 0:00:10]} e4 {[%emt 0:00:17]} 60. Ke5 {[%emt 0:00:08]} Kc7 {[%emt 0:00:23]} 61. Kxe4 {[%emt 0:00:07]} Kd6 {[%emt 0:01:20]} 62. Kf5 {[%emt 0:00:05]} Ke7 {[%emt 0:00:08]} 63. Kg6 {[%emt 0:00:06]} Ke6 {[%emt 0:00:05]} 64. f4 {[%emt 0:00:05]} Ke7 {[%emt 0:00:04]} 65. Kg7 {[%emt 0:00:06]} Ke6 {[%emt 0:00:09]} 66. Kg6 {[%emt 0:00:09]} Ke7 {[%emt 0:00:06]} 67. f5 {[%emt 0:00:28]} Kf8 {[%emt 0:00:10]} 68. Kf6 {[%emt 0:00:09]} Kg8 {[%emt 0:00:07]} 69. Ke7 {[%emt 0:00:07]} Kg7 {[%emt 0:00:14]} 70. f6+ {[%emt 0:00:07]} Kh8 {[%emt 0:00:04]} 71. f7 {[%emt 0:00:06]} Kh7 {[%emt 0:00:05]} 72. Kf6 1-0